[Event "Titled Tuesday Blitz April 11 Late 2023"]
[White "Goltsev, Dmitry"]
[Black "Petrova, Irina"]
[WhiteFideId "24176710"]
[BlackFideId "14124122"]
[WhiteElo "2336"]
[BlackElo "2084"]
[Result "1-0"]
[Round "01"]
[TimeControl "180+2"]
[Date "2023.04.11"]
[WhiteClock "0:00:00"]
[BlackClock "0:00:00"]

1. e4 {[%clk 0:00:01]}  d6 {[%clk 0:00:01]} 2. Nf3 {[%clk 0:00:01]}  g6 {[%clk 0:00:01]} 3. Nc3 {[%clk 0:00:01]}  Bg7 {[%clk 0:00:01]} 4. d4 {[%clk 0:00:01]}  Nf6 {[%clk 0:00:01]} 5. h3 {[%clk 0:00:01]}  O-O {[%clk 0:00:01]} 6. Be2 {[%clk 0:00:01]}  Nc6 {[%clk 0:00:01]} 7. Be3 {[%clk 0:00:01]}  e5 {[%clk 0:00:01]} 8. d5 {[%clk 0:00:01]}  Ne7 {[%clk 0:00:01]} 9. Qd2 {[%clk 0:00:01]}  c6 {[%clk 0:00:01]} 10. O-O-O {[%clk 0:00:01]}  cxd5 {[%clk 0:00:01]} 11. exd5 {[%clk 0:00:01]}  Bf5 {[%clk 0:00:01]} 12. Ng5 {[%clk 0:00:01]}  Qa5 {[%clk 0:00:01]} 13. g4 {[%clk 0:00:01]}  Bd7 {[%clk 0:00:01]} 14. Bc4 {[%clk 0:00:01]}  Rfc8 {[%clk 0:00:01]} 15. Bb3 {[%clk 0:00:01]}  b5 {[%clk 0:00:01]} 16. Nce4 {[%clk 0:00:01]}  Qxd2+ {[%clk 0:00:01]} 17. Rxd2 {[%clk 0:00:01]}  Nxe4 {[%clk 0:00:01]} 18. Nxe4 {[%clk 0:00:01]}  a5 {[%clk 0:00:01]} 19. Nxd6 {[%clk 0:00:01]}  a4 {[%clk 0:00:01]} 20. Nxc8 {[%clk 0:00:01]}  Nxc8 {[%clk 0:00:01]} 21. a3 {[%clk 0:00:01]}  axb3 {[%clk 0:00:01]} 22. cxb3 {[%clk 0:00:01]}  Nd6 {[%clk 0:00:01]} 23. f3 {[%clk 0:00:01]}  b4 {[%clk 0:00:00]} 24. a4 {[%clk 0:00:01]}  e4 {[%clk 0:00:00]} 25. f4 {[%clk 0:00:00]}  f5 {[%clk 0:00:00]} 26. g5 {[%clk 0:00:00]}  Bxa4 {[%clk 0:00:00]} 27. bxa4 {[%clk 0:00:00]}  Rxa4 {[%clk 0:00:00]} 28. Kc2 {[%clk 0:00:00]}  Nc4 {[%clk 0:00:00]} 29. Kb3 {[%clk 0:00:00]}  Nxd2+ {[%clk 0:00:00]} 30. Kxa4 {[%clk 0:00:00]}  Nc4 {[%clk 0:00:00]} 31. Bc5 {[%clk 0:00:00]}  Nxb2+ {[%clk 0:00:00]} 32. Kxb4 {[%clk 0:00:00]}  Nd3+ {[%clk 0:00:00]} 33. Kb5 {[%clk 0:00:00]}  Nxf4 {[%clk 0:00:00]} 34. d6 {[%clk 0:00:00]}  Ne6 {[%clk 0:00:00]} 35. d7 {[%clk 0:00:00]}  Kf7 {[%clk 0:00:00]} 36. Kc6 {[%clk 0:00:00]}  f4 {[%clk 0:00:00]} 37. Rf1 {[%clk 0:00:00]}  f3 {[%clk 0:00:00]} 38. Rd1 {[%clk 0:00:00]}  Nd8+ {[%clk 0:00:00]} 39. Kc7 {[%clk 0:00:00]}  Ne6+ {[%clk 0:00:00]} 40. Kc8 {[%clk 0:00:00]}  f2 {[%clk 0:00:00]} 41. Bxf2 {[%clk 0:00:00]}  Be5 {[%clk 0:00:00]} 42. d8=Q {[%clk 0:00:00]}  Nxd8 {[%clk 0:00:00]} 43. Rxd8 {[%clk 0:00:00]}  Bf4 {[%clk 0:00:00]} 44. Rd4 {[%clk 0:00:00]}  Bxg5 {[%clk 0:00:00]} 45. Rxe4 {[%clk 0:00:00]}  h5 {[%clk 0:00:00]} 46. Kd7 {[%clk 0:00:00]}  Kg7 {[%clk 0:00:00]} 47. Ke6 {[%clk 0:00:00]}  Bd2 {[%clk 0:00:00]} 48. Bd4+ {[%clk 0:00:00]}  Kh6 {[%clk 0:00:00]} 49. Kf7 {[%clk 0:00:00]}  Bg5 {[%clk 0:00:00]} 50. Re6 {[%clk 0:00:00]}  Kh7 {[%clk 0:00:00]} 51. Rxg6 {[%clk 0:00:00]}  Bd2 {[%clk 0:00:00]} 52. Rg8 {[%clk 0:00:00]} 1-0


[Site "https://www.chess.com"]

[Event "Titled Tuesday Blitz April 11 Late 2023"]
[White "Dzida, Kamil"]
[Black "Remizov, Yaroslav"]
[WhiteFideId "21828652"]
[BlackFideId "34134015"]
[WhiteElo "2139"]
[BlackElo "2412"]
[Result "0-1"]
[Round "01"]
[TimeControl "180+2"]
[Date "2023.04.11"]
[WhiteClock "0:00:00"]
[BlackClock "0:00:00"]

1. e4 {[%clk 0:00:01]}  c5 {[%clk 0:00:01]} 2. Nf3 {[%clk 0:00:01]}  Nc6 {[%clk 0:00:01]} 3. Bb5 {[%clk 0:00:01]}  g5 {[%clk 0:00:01]} 4. Bxc6 {[%clk 0:00:01]}  dxc6 {[%clk 0:00:01]} 5. Nxg5 {[%clk 0:00:01]}  Nf6 {[%clk 0:00:01]} 6. d3 {[%clk 0:00:01]}  Rg8 {[%clk 0:00:01]} 7. O-O {[%clk 0:00:01]}  Bg4 {[%clk 0:00:01]} 8. Nf3 {[%clk 0:00:01]}  Nxe4 {[%clk 0:00:01]} 9. Bf4 {[%clk 0:00:01]}  Qd5 {[%clk 0:00:01]} 10. Kh1 {[%clk 0:00:01]}  O-O-O {[%clk 0:00:01]} 11. h3 {[%clk 0:00:00]}  Qh5 {[%clk 0:00:01]} 12. Bh2 {[%clk 0:00:00]}  Bxf3 {[%clk 0:00:01]} 13. Qxf3 {[%clk 0:00:00]}  Qxf3 {[%clk 0:00:01]} 14. gxf3 {[%clk 0:00:00]}  Ng5 {[%clk 0:00:00]} 15. Nd2 {[%clk 0:00:00]}  Nxh3 {[%clk 0:00:00]} 16. Ne4 {[%clk 0:00:00]}  b6 {[%clk 0:00:00]} 17. Ng3 {[%clk 0:00:00]}  Rd6 {[%clk 0:00:00]} 18. Rae1 {[%clk 0:00:00]}  Kd7 {[%clk 0:00:00]} 19. Re4 {[%clk 0:00:00]}  Rh6 {[%clk 0:00:00]} 20. Nf5 {[%clk 0:00:00]}  Rh5 {[%clk 0:00:00]} 21. Ng3 {[%clk 0:00:00]}  Rh6 {[%clk 0:00:00]} 22. Nf5 {[%clk 0:00:00]}  Rf6 {[%clk 0:00:00]} 23. Rh4 {[%clk 0:00:00]}  Rxf5 {[%clk 0:00:00]} 24. Rxh3 {[%clk 0:00:00]}  h5 {[%clk 0:00:00]} 25. Rg1 {[%clk 0:00:00]}  Rxg1+ {[%clk 0:00:00]} 26. Kxg1 {[%clk 0:00:00]}  Bg7 {[%clk 0:00:00]} 27. f4 {[%clk 0:00:00]}  Bxb2 {[%clk 0:00:00]} 28. Kg2 {[%clk 0:00:00]}  Bc1 {[%clk 0:00:00]} 29. Kf3 {[%clk 0:00:00]}  e6 {[%clk 0:00:00]} 30. Ke4 {[%clk 0:00:00]}  b5 {[%clk 0:00:00]} 31. f3 {[%clk 0:00:00]}  a5 {[%clk 0:00:00]} 32. c4 {[%clk 0:00:00]}  b4 {[%clk 0:00:00]} 33. Bg3 {[%clk 0:00:00]}  a4 {[%clk 0:00:00]} 34. Rh2 {[%clk 0:00:00]}  b3 {[%clk 0:00:00]} 35. axb3 {[%clk 0:00:00]}  axb3 {[%clk 0:00:00]} 0-1


[Site "https://www.chess.com"]

[Event "Titled Tuesday Blitz April 11 Late 2023"]
[White "Leitao, Rafael"]
[Black "Kovalevsky, Stanislav"]
[WhiteFideId "2101246"]
[BlackFideId "13508598"]
[WhiteElo "2609"]
[BlackElo "2174"]
[Result "1-0"]
[Round "01"]
[TimeControl "180+2"]
[Date "2023.04.11"]
[WhiteClock "0:00:00"]
[BlackClock "0:00:00"]

1. c4 {[%clk 0:00:01]}  e6 {[%clk 0:00:01]} 2. g3 {[%clk 0:00:01]}  d5 {[%clk 0:00:01]} 3. Bg2 {[%clk 0:00:01]}  c6 {[%clk 0:00:01]} 4. Nf3 {[%clk 0:00:01]}  Nd7 {[%clk 0:00:01]} 5. O-O {[%clk 0:00:01]}  dxc4 {[%clk 0:00:01]} 6. Qc2 {[%clk 0:00:01]}  b5 {[%clk 0:00:01]} 7. b3 {[%clk 0:00:01]}  Rb8 {[%clk 0:00:01]} 8. bxc4 {[%clk 0:00:01]}  Bb7 {[%clk 0:00:01]} 9. Bb2 {[%clk 0:00:01]}  Ngf6 {[%clk 0:00:01]} 10. Nd4 {[%clk 0:00:01]}  Qb6 {[%clk 0:00:01]} 11. a4 {[%clk 0:00:01]}  bxc4 {[%clk 0:00:01]} 12. a5 {[%clk 0:00:01]}  Qc5 {[%clk 0:00:01]} 13. e3 {[%clk 0:00:01]}  e5 {[%clk 0:00:01]} 14. Ba3 {[%clk 0:00:01]}  Qxa5 {[%clk 0:00:01]} 15. Nxc6 {[%clk 0:00:01]}  Bxc6 {[%clk 0:00:01]} 16. Bxc6 {[%clk 0:00:01]}  Bxa3 {[%clk 0:00:01]} 17. Nxa3 {[%clk 0:00:00]}  O-O {[%clk 0:00:01]} 18. Nxc4 {[%clk 0:00:00]}  Qc5 {[%clk 0:00:00]} 19. Bxd7 {[%clk 0:00:00]}  Nxd7 {[%clk 0:00:01]} 20. Ra5 {[%clk 0:00:00]}  Qc7 {[%clk 0:00:00]} 21. Qa2 {[%clk 0:00:00]}  Rb7 {[%clk 0:00:00]} 22. Ra1 {[%clk 0:00:00]}  Rc8 {[%clk 0:00:00]} 23. Rxa7 {[%clk 0:00:00]}  Rxa7 {[%clk 0:00:00]} 24. Qxa7 {[%clk 0:00:00]}  Qxc4 {[%clk 0:00:00]} 25. Qxd7 {[%clk 0:00:00]}  g6 {[%clk 0:00:00]} 26. Ra7 {[%clk 0:00:00]}  e4 {[%clk 0:00:00]} 27. Kg2 {[%clk 0:00:00]}  Rb8 {[%clk 0:00:00]} 28. Rc7 {[%clk 0:00:00]}  Qe2 {[%clk 0:00:00]} 29. Qxf7+ {[%clk 0:00:00]}  Kh8 {[%clk 0:00:00]} 30. Qg7# {[%clk 0:00:00]} 1-0


[Site "https://www.chess.com"]

[Event "Titled Tuesday Blitz April 11 Late 2023"]
[White "Bilych, Olexiy"]
[Black "Bas Mas, Jose Joaquin"]
[WhiteFideId "14156504"]
[BlackFideId "22219064"]
[WhiteElo "2320"]
[BlackElo "2233"]
[Result "1-0"]
[Round "01"]
[TimeControl "180+2"]
[Date "2023.04.11"]
[WhiteClock "0:00:00"]
[BlackClock "0:00:00"]

1. d4 {[%clk 0:00:01]}  d5 {[%clk 0:00:01]} 2. c4 {[%clk 0:00:01]}  e6 {[%clk 0:00:01]} 3. Nf3 {[%clk 0:00:01]}  Nf6 {[%clk 0:00:01]} 4. Nc3 {[%clk 0:00:01]}  Nbd7 {[%clk 0:00:01]} 5. Bg5 {[%clk 0:00:01]}  h6 {[%clk 0:00:01]} 6. Bh4 {[%clk 0:00:01]}  Be7 {[%clk 0:00:01]} 7. e3 {[%clk 0:00:01]}  O-O {[%clk 0:00:01]} 8. Qc2 {[%clk 0:00:01]}  b6 {[%clk 0:00:01]} 9. cxd5 {[%clk 0:00:01]}  exd5 {[%clk 0:00:01]} 10. Bd3 {[%clk 0:00:01]}  Bb7 {[%clk 0:00:01]} 11. O-O {[%clk 0:00:01]}  c5 {[%clk 0:00:01]} 12. Rad1 {[%clk 0:00:01]}  Ne8 {[%clk 0:00:01]} 13. Bxe7 {[%clk 0:00:01]}  Qxe7 {[%clk 0:00:01]} 14. Bf5 {[%clk 0:00:01]}  Ndf6 {[%clk 0:00:01]} 15. Ne5 {[%clk 0:00:01]}  Nd6 {[%clk 0:00:01]} 16. Bh3 {[%clk 0:00:01]}  a6 {[%clk 0:00:01]} 17. a4 {[%clk 0:00:01]}  Nde4 {[%clk 0:00:01]} 18. f3 {[%clk 0:00:01]}  Nxc3 {[%clk 0:00:01]} 19. bxc3 {[%clk 0:00:01]}  Bc8 {[%clk 0:00:01]} 20. Bxc8 {[%clk 0:00:01]}  Rfxc8 {[%clk 0:00:01]} 21. Qf5 {[%clk 0:00:01]}  g6 {[%clk 0:00:01]} 22. Qf4 {[%clk 0:00:01]}  Kg7 {[%clk 0:00:00]} 23. Rb1 {[%clk 0:00:01]}  Qe6 {[%clk 0:00:00]} 24. a5 {[%clk 0:00:00]}  b5 {[%clk 0:00:00]} 25. Rbc1 {[%clk 0:00:00]}  Ra7 {[%clk 0:00:00]} 26. Nd3 {[%clk 0:00:00]}  Nd7 {[%clk 0:00:00]} 27. dxc5 {[%clk 0:00:00]}  Rac7 {[%clk 0:00:00]} 28. Qd4+ {[%clk 0:00:00]}  Kg8 {[%clk 0:00:00]} 29. Nf4 {[%clk 0:00:00]}  Qe5 {[%clk 0:00:00]} 30. Nxd5 {[%clk 0:00:00]}  Rxc5 {[%clk 0:00:00]} 31. Qxe5 {[%clk 0:00:00]}  Nxe5 {[%clk 0:00:00]} 32. Ne7+ {[%clk 0:00:00]}  Kf8 {[%clk 0:00:00]} 33. Nxc8 {[%clk 0:00:00]}  Rxc8 {[%clk 0:00:00]} 34. Rfd1 {[%clk 0:00:00]}  Nc4 {[%clk 0:00:00]} 35. Kf2 {[%clk 0:00:00]}  Nxa5 {[%clk 0:00:00]} 36. Ra1 {[%clk 0:00:00]}  Nb3 {[%clk 0:00:00]} 37. Rxa6 {[%clk 0:00:00]}  Rxc3 {[%clk 0:00:00]} 38. Ra7 {[%clk 0:00:00]}  Nc5 {[%clk 0:00:00]} 39. Rd8+ {[%clk 0:00:00]}  Kg7 {[%clk 0:00:00]} 40. Rb8 {[%clk 0:00:00]}  b4 {[%clk 0:00:00]} 41. Kg3 {[%clk 0:00:00]}  b3 {[%clk 0:00:00]} 42. Rb5 {[%clk 0:00:00]}  Nd3 {[%clk 0:00:00]} 43. Rbb7 {[%clk 0:00:00]}  Ne5 {[%clk 0:00:00]} 44. Kf4 {[%clk 0:00:00]}  Kf6 {[%clk 0:00:00]} 45. Ra6+ {[%clk 0:00:00]}  Nc6 {[%clk 0:00:00]} 46. Rbb6 {[%clk 0:00:00]}  g5+ {[%clk 0:00:00]} 47. Kg3 {[%clk 0:00:00]}  b2 {[%clk 0:00:00]} 48. Rxc6+ {[%clk 0:00:00]}  Rxc6 {[%clk 0:00:00]} 49. Rxc6+ {[%clk 0:00:00]}  Kf5 {[%clk 0:00:00]} 50. Rb6 {[%clk 0:00:00]}  h5 {[%clk 0:00:00]} 51. Rxb2 {[%clk 0:00:00]}  f6 {[%clk 0:00:00]} 52. Kf2 {[%clk 0:00:00]}  h4 {[%clk 0:00:00]} 53. Rb5+ {[%clk 0:00:00]} 1-0


[Site "https://www.chess.com"]

[Event "Titled Tuesday Blitz April 11 Late 2023"]
[White "Yanchenko, Roman"]
[Black "Federzoni, Enzo"]
[WhiteFideId "4137329"]
[BlackFideId "2173301"]
[WhiteElo "2491"]
[BlackElo "2039"]
[Result "1-0"]
[Round "01"]
[TimeControl "180+2"]
[Date "2023.04.11"]
[WhiteClock "0:00:00"]
[BlackClock "0:00:00"]

1. d4 {[%clk 0:00:01]}  Nf6 {[%clk 0:00:01]} 2. Nf3 {[%clk 0:00:01]}  g6 {[%clk 0:00:01]} 3. c4 {[%clk 0:00:01]}  Bg7 {[%clk 0:00:01]} 4. Bf4 {[%clk 0:00:01]}  O-O {[%clk 0:00:01]} 5. e3 {[%clk 0:00:01]}  d6 {[%clk 0:00:01]} 6. Nc3 {[%clk 0:00:01]}  Nbd7 {[%clk 0:00:01]} 7. h3 {[%clk 0:00:01]}  b6 {[%clk 0:00:01]} 8. Be2 {[%clk 0:00:01]}  Bb7 {[%clk 0:00:01]} 9. O-O {[%clk 0:00:01]}  Ne4 {[%clk 0:00:01]} 10. Nxe4 {[%clk 0:00:01]}  Bxe4 {[%clk 0:00:01]} 11. Qa4 {[%clk 0:00:01]}  c5 {[%clk 0:00:01]} 12. Rfd1 {[%clk 0:00:01]}  Qc7 {[%clk 0:00:01]} 13. Bg3 {[%clk 0:00:01]}  Rfe8 {[%clk 0:00:01]} 14. Rac1 {[%clk 0:00:01]}  Rac8 {[%clk 0:00:01]} 15. Qa3 {[%clk 0:00:01]}  e5 {[%clk 0:00:01]} 16. dxe5 {[%clk 0:00:01]}  dxe5 {[%clk 0:00:01]} 17. Rd2 {[%clk 0:00:01]}  Nf8 {[%clk 0:00:01]} 18. Rcd1 {[%clk 0:00:01]}  h6 {[%clk 0:00:01]} 19. b3 {[%clk 0:00:01]}  f5 {[%clk 0:00:01]} 20. Rd6 {[%clk 0:00:00]}  Qe7 {[%clk 0:00:01]} 21. Qc1 {[%clk 0:00:00]}  g5 {[%clk 0:00:01]} 22. Bh2 {[%clk 0:00:00]}  f4 {[%clk 0:00:01]} 23. Ne1 {[%clk 0:00:00]}  Rcd8 {[%clk 0:00:01]} 24. Rxd8 {[%clk 0:00:00]}  Rxd8 {[%clk 0:00:01]} 25. Bg4 {[%clk 0:00:00]}  Rd6 {[%clk 0:00:01]} 26. Kf1 {[%clk 0:00:00]}  Qd8 {[%clk 0:00:00]} 27. Rxd6 {[%clk 0:00:00]}  Qxd6 {[%clk 0:00:00]} 28. Qd1 {[%clk 0:00:00]}  Qxd1 {[%clk 0:00:00]} 29. Bxd1 {[%clk 0:00:00]}  Bb1 {[%clk 0:00:00]} 30. a3 {[%clk 0:00:00]}  Kf7 {[%clk 0:00:00]} 31. Ke2 {[%clk 0:00:00]}  Ke6 {[%clk 0:00:00]} 32. f3 {[%clk 0:00:00]}  Nd7 {[%clk 0:00:00]} 33. e4 {[%clk 0:00:00]}  a5 {[%clk 0:00:00]} 34. Kd2 {[%clk 0:00:00]}  a4 {[%clk 0:00:00]} 35. bxa4 {[%clk 0:00:00]}  Nb8 {[%clk 0:00:00]} 36. Kc3 {[%clk 0:00:00]}  Ba2 {[%clk 0:00:00]} 37. Nd3 {[%clk 0:00:00]}  Nc6 {[%clk 0:00:00]} 38. Nc1 {[%clk 0:00:00]}  Bb1 {[%clk 0:00:00]} 39. Kb2 {[%clk 0:00:00]}  Bxe4 {[%clk 0:00:00]} 40. fxe4 {[%clk 0:00:00]}  Nd4 {[%clk 0:00:00]} 41. Kc3 {[%clk 0:00:00]}  Bf8 {[%clk 0:00:00]} 42. Nb3 {[%clk 0:00:00]}  Nc6 {[%clk 0:00:00]} 43. Bg4+ {[%clk 0:00:00]}  Kd6 {[%clk 0:00:00]} 44. Bg1 {[%clk 0:00:00]}  Be7 {[%clk 0:00:00]} 45. a5 {[%clk 0:00:00]}  bxa5 {[%clk 0:00:00]} 46. Bxc5+ {[%clk 0:00:00]} 1-0


[Site "https://www.chess.com"]

[Event "Titled Tuesday Blitz April 11 Late 2023"]
[White "Kushko, Dmitriy"]
[Black "Davidson, Kevin"]
[WhiteFideId "14162261"]
[BlackFideId "2056810"]
[WhiteElo "2230"]
[BlackElo "2151"]
[Result "1-0"]
[Round "01"]
[TimeControl "180+2"]
[Date "2023.04.11"]
[WhiteClock "0:00:00"]
[BlackClock "0:00:00"]

1. g3 {[%clk 0:00:01]}  g6 {[%clk 0:00:01]} 2. Bg2 {[%clk 0:00:01]}  Bg7 {[%clk 0:00:01]} 3. d4 {[%clk 0:00:01]}  Nf6 {[%clk 0:00:01]} 4. Nf3 {[%clk 0:00:01]}  d6 {[%clk 0:00:01]} 5. O-O {[%clk 0:00:01]}  O-O {[%clk 0:00:01]} 6. a4 {[%clk 0:00:01]}  a5 {[%clk 0:00:01]} 7. Re1 {[%clk 0:00:01]}  Bf5 {[%clk 0:00:01]} 8. Nbd2 {[%clk 0:00:01]}  Nc6 {[%clk 0:00:01]} 9. e4 {[%clk 0:00:01]}  Bg4 {[%clk 0:00:01]} 10. h3 {[%clk 0:00:01]}  Bxf3 {[%clk 0:00:01]} 11. Nxf3 {[%clk 0:00:01]}  d5 {[%clk 0:00:01]} 12. e5 {[%clk 0:00:01]}  Ne4 {[%clk 0:00:01]} 13. c4 {[%clk 0:00:01]}  e6 {[%clk 0:00:01]} 14. cxd5 {[%clk 0:00:01]}  exd5 {[%clk 0:00:01]} 15. Bf4 {[%clk 0:00:01]}  f6 {[%clk 0:00:01]} 16. h4 {[%clk 0:00:01]}  fxe5 {[%clk 0:00:01]} 17. Nxe5 {[%clk 0:00:01]}  Nxe5 {[%clk 0:00:01]} 18. dxe5 {[%clk 0:00:01]}  c6 {[%clk 0:00:00]} 19. Bxe4 {[%clk 0:00:01]}  dxe4 {[%clk 0:00:00]} 20. Rxe4 {[%clk 0:00:00]}  Qb6 {[%clk 0:00:00]} 21. Qd4 {[%clk 0:00:00]}  Qxd4 {[%clk 0:00:00]} 22. Rxd4 {[%clk 0:00:00]}  Rae8 {[%clk 0:00:00]} 23. Re1 {[%clk 0:00:00]}  Re6 {[%clk 0:00:00]} 24. Rd7 {[%clk 0:00:00]}  Rf7 {[%clk 0:00:00]} 25. Rd8+ {[%clk 0:00:00]}  Rf8 {[%clk 0:00:00]} 26. Rxf8+ {[%clk 0:00:00]}  Bxf8 {[%clk 0:00:00]} 27. Bd2 {[%clk 0:00:00]}  b6 {[%clk 0:00:00]} 28. Kg2 {[%clk 0:00:00]}  Bc5 {[%clk 0:00:00]} 29. Bc3 {[%clk 0:00:00]}  h5 {[%clk 0:00:00]} 30. f4 {[%clk 0:00:00]}  Kf7 {[%clk 0:00:00]} 31. Kf3 {[%clk 0:00:00]}  Re7 {[%clk 0:00:00]} 32. Rd1 {[%clk 0:00:00]}  Ke6 {[%clk 0:00:00]} 33. Ke4 {[%clk 0:00:00]}  Bf2 {[%clk 0:00:00]} 34. Rd6+ {[%clk 0:00:00]}  Kf7 {[%clk 0:00:00]} 35. Rf6+ {[%clk 0:00:00]} 1-0


[Site "https://www.chess.com"]

[Event "Titled Tuesday Blitz April 11 Late 2023"]
[White "Estrada Nieto, Julian"]
[Black "Yuan, Qingyu"]
[WhiteFideId "5101018"]
[BlackFideId "8609772"]
[WhiteElo "2161"]
[BlackElo "2359"]
[Result "0-1"]
[Round "01"]
[TimeControl "180+2"]
[Date "2023.04.11"]
[WhiteClock "0:00:06"]
[BlackClock "0:00:07"]

1. e4 {[%clk 0:02:59]}  c5 {[%clk 0:02:45]} 2. Nf3 {[%clk 0:02:59]}  d6 {[%clk 0:02:45]} 3. Bb5+ {[%clk 0:02:59]}  Nd7 {[%clk 0:02:45]} 4. d4 {[%clk 0:02:58]}  cxd4 {[%clk 0:02:38]} 5. Qxd4 {[%clk 0:02:59]}  a6 {[%clk 0:02:38]} 6. Bxd7+ {[%clk 0:02:59]}  Bxd7 {[%clk 0:02:39]} 7. Nc3 {[%clk 0:03:00]}  e5 {[%clk 0:02:37]} 8. Qd3 {[%clk 0:02:59]}  h6 {[%clk 0:02:24]} 9. Nd2 {[%clk 0:02:59]}  b5 {[%clk 0:02:22]} 10. a4 {[%clk 0:02:58]}  b4 {[%clk 0:02:03]} 11. Nd5 {[%clk 0:02:57]}  a5 {[%clk 0:02:02]} 12. Nc4 {[%clk 0:02:47]}  Nf6 {[%clk 0:02:00]} 13. Be3 {[%clk 0:02:31]}  Nxd5 {[%clk 0:01:53]} 14. Qxd5 {[%clk 0:02:31]}  Ra6 {[%clk 0:01:53]} 15. Rd1 {[%clk 0:02:18]}  Be7 {[%clk 0:01:43]} 16. O-O {[%clk 0:02:16]}  Qa8 {[%clk 0:00:59]} 17. Qxa8+ {[%clk 0:01:59]}  Rxa8 {[%clk 0:00:59]} 18. b3 {[%clk 0:01:55]}  Ra6 {[%clk 0:00:53]} 19. Rd5 {[%clk 0:01:54]}  Be6 {[%clk 0:00:54]} 20. Rb5 {[%clk 0:01:46]}  Bxc4 {[%clk 0:00:54]} 21. Rb8+ {[%clk 0:01:37]}  Kd7 {[%clk 0:00:54]} 22. Rxh8 {[%clk 0:01:36]}  Bxf1 {[%clk 0:00:54]} 23. Kxf1 {[%clk 0:01:37]}  Rc6 {[%clk 0:00:49]} 24. Ra8 {[%clk 0:01:34]}  Bd8 {[%clk 0:00:49]} 25. Ra7+ {[%clk 0:01:33]}  Ke6 {[%clk 0:00:37]} 26. Ra8 {[%clk 0:01:29]}  Bc7 {[%clk 0:00:30]} 27. Rc8 {[%clk 0:01:23]}  Kd7 {[%clk 0:00:29]} 28. Rf8 {[%clk 0:01:22]}  Rxc2 {[%clk 0:00:25]} 29. Rxf7+ {[%clk 0:01:22]}  Kc6 {[%clk 0:00:25]} 30. Rxg7 {[%clk 0:01:21]}  Rb2 {[%clk 0:00:21]} 31. Bxh6 {[%clk 0:01:14]}  Rxb3 {[%clk 0:00:21]} 32. h4 {[%clk 0:01:07]}  Rc3 {[%clk 0:00:18]} 33. Rg3 {[%clk 0:00:56]}  Rc4 {[%clk 0:00:10]} 34. Re3 {[%clk 0:00:49]}  Bb6 {[%clk 0:00:08]} 35. Re1 {[%clk 0:00:43]}  Bd4 {[%clk 0:00:03]} 36. Rb1 {[%clk 0:00:41]}  Rc2 {[%clk 0:00:02]} 37. Be3 {[%clk 0:00:38]}  Bc3 {[%clk 0:00:02]} 38. h5 {[%clk 0:00:36]}  Kd7 {[%clk 0:00:02]} 39. h6 {[%clk 0:00:36]}  Bd4 {[%clk 0:00:03]} 40. Bxd4 {[%clk 0:00:34]}  exd4 {[%clk 0:00:04]} 41. h7 {[%clk 0:00:33]}  Rc8 {[%clk 0:00:04]} 42. Ke2 {[%clk 0:00:31]}  Rh8 {[%clk 0:00:05]} 43. Rh1 {[%clk 0:00:31]}  Kc6 {[%clk 0:00:05]} 44. Kd3 {[%clk 0:00:31]}  Kc5 {[%clk 0:00:06]} 45. g4 {[%clk 0:00:31]}  b3 {[%clk 0:00:06]} 46. g5 {[%clk 0:00:31]}  b2 {[%clk 0:00:06]} 47. g6 {[%clk 0:00:31]}  Kb4 {[%clk 0:00:04]} 48. Kxd4 {[%clk 0:00:20]}  Kxa4 {[%clk 0:00:04]} 49. f4 {[%clk 0:00:16]}  Kb4 {[%clk 0:00:03]} 50. f5 {[%clk 0:00:16]}  a4 {[%clk 0:00:03]} 51. f6 {[%clk 0:00:17]}  a3 {[%clk 0:00:04]} 52. g7 {[%clk 0:00:17]}  Rxh7 {[%clk 0:00:04]} 53. Rxh7 {[%clk 0:00:17]}  b1=Q {[%clk 0:00:04]} 54. g8=Q {[%clk 0:00:18]}  Qd1+ {[%clk 0:00:03]} 55. Ke3 {[%clk 0:00:18]}  Qe1+ {[%clk 0:00:04]} 56. Kf4 {[%clk 0:00:16]}  Qf2+ {[%clk 0:00:04]} 57. Kg5 {[%clk 0:00:13]}  Qg2+ {[%clk 0:00:04]} 58. Kf5 {[%clk 0:00:13]}  Qxg8 {[%clk 0:00:05]} 59. Rg7 {[%clk 0:00:13]}  Qf8 {[%clk 0:00:05]} 60. Ke6 {[%clk 0:00:11]}  a2 {[%clk 0:00:04]} 61. Rb7+ {[%clk 0:00:12]}  Kc3 {[%clk 0:00:04]} 62. Rc7+ {[%clk 0:00:12]}  Kb2 {[%clk 0:00:04]} 63. Rb7+ {[%clk 0:00:11]}  Kc2 {[%clk 0:00:04]} 64. Rc7+ {[%clk 0:00:11]}  Kd3 {[%clk 0:00:05]} 65. Ra7 {[%clk 0:00:11]}  Qe8+ {[%clk 0:00:05]} 66. Kxd6 {[%clk 0:00:10]}  Qd8+ {[%clk 0:00:04]} 67. Ke6 {[%clk 0:00:10]}  Qb6+ {[%clk 0:00:05]} 68. Kf5 {[%clk 0:00:08]}  Qc5+ {[%clk 0:00:05]} 69. Kg6 {[%clk 0:00:08]}  Qg1+ {[%clk 0:00:05]} 70. Kf5 {[%clk 0:00:07]}  Qxa7 {[%clk 0:00:05]} 71. e5 {[%clk 0:00:06]}  a1=Q {[%clk 0:00:06]} 72. e6 {[%clk 0:00:06]}  Qf1+ {[%clk 0:00:07]} 73. Kg6 {[%clk 0:00:07]}  Qag1+ {[%clk 0:00:06]} 74. Kf7 {[%clk 0:00:07]}  Qg5 {[%clk 0:00:07]} 75. Ke7 {[%clk 0:00:06]}  Qfxf6+ {[%clk 0:00:07]} 76. Kd6 {[%clk 0:00:06]}  Qe7+ {[%clk 0:00:07]} 0-1


[Site "https://www.chess.com"]

[Event "Titled Tuesday Blitz April 11 Late 2023"]
[White "Klekowski, Maciej"]
[Black "Kujawski, Adam"]
[WhiteFideId "1132717"]
[BlackFideId "1100920"]
[WhiteElo "2540"]
[BlackElo "2054"]
[Result "1-0"]
[Round "01"]
[TimeControl "180+2"]
[Date "2023.04.11"]
[WhiteClock "0:00:00"]
[BlackClock "0:00:00"]

1. c4 {[%clk 0:00:01]}  e5 {[%clk 0:00:01]} 2. Nc3 {[%clk 0:00:01]}  Nc6 {[%clk 0:00:01]} 3. g3 {[%clk 0:00:01]}  d6 {[%clk 0:00:01]} 4. Bg2 {[%clk 0:00:01]}  g6 {[%clk 0:00:01]} 5. e4 {[%clk 0:00:01]}  Bg7 {[%clk 0:00:01]} 6. Nge2 {[%clk 0:00:01]}  Nge7 {[%clk 0:00:01]} 7. d3 {[%clk 0:00:01]}  O-O {[%clk 0:00:01]} 8. h4 {[%clk 0:00:01]}  h5 {[%clk 0:00:01]} 9. Bg5 {[%clk 0:00:01]}  Nd4 {[%clk 0:00:01]} 10. Nxd4 {[%clk 0:00:01]}  exd4 {[%clk 0:00:01]} 11. Ne2 {[%clk 0:00:01]}  c5 {[%clk 0:00:01]} 12. O-O {[%clk 0:00:01]}  Bg4 {[%clk 0:00:01]} 13. Qd2 {[%clk 0:00:01]}  Qd7 {[%clk 0:00:01]} 14. Bxe7 {[%clk 0:00:01]}  Qxe7 {[%clk 0:00:01]} 15. Nf4 {[%clk 0:00:01]}  Be6 {[%clk 0:00:01]} 16. b4 {[%clk 0:00:01]}  Kh7 {[%clk 0:00:01]} 17. bxc5 {[%clk 0:00:01]}  dxc5 {[%clk 0:00:01]} 18. Nd5 {[%clk 0:00:01]}  Bxd5 {[%clk 0:00:01]} 19. cxd5 {[%clk 0:00:01]}  Bh6 {[%clk 0:00:01]} 20. f4 {[%clk 0:00:01]}  f6 {[%clk 0:00:00]} 21. Rab1 {[%clk 0:00:01]}  Rab8 {[%clk 0:00:00]} 22. a4 {[%clk 0:00:01]}  Qd6 {[%clk 0:00:00]} 23. Rfe1 {[%clk 0:00:01]}  Rfe8 {[%clk 0:00:00]} 24. Bh3 {[%clk 0:00:01]}  Re7 {[%clk 0:00:00]} 25. Qe2 {[%clk 0:00:01]}  b6 {[%clk 0:00:00]} 26. Be6 {[%clk 0:00:01]}  Rxe6 {[%clk 0:00:00]} 27. dxe6 {[%clk 0:00:01]}  Qxe6 {[%clk 0:00:00]} 28. e5 {[%clk 0:00:01]}  Re8 {[%clk 0:00:00]} 29. Qf3 {[%clk 0:00:01]}  f5 {[%clk 0:00:00]} 30. a5 {[%clk 0:00:01]}  Bf8 {[%clk 0:00:00]} 31. axb6 {[%clk 0:00:01]}  axb6 {[%clk 0:00:00]} 32. Ra1 {[%clk 0:00:01]}  c4 {[%clk 0:00:00]} 33. dxc4 {[%clk 0:00:01]}  Qxc4 {[%clk 0:00:00]} 34. Rec1 {[%clk 0:00:01]}  Qb4 {[%clk 0:00:00]} 35. Ra7+ {[%clk 0:00:01]}  Kh8 {[%clk 0:00:00]} 36. Qc6 {[%clk 0:00:00]}  Re7 {[%clk 0:00:00]} 37. Qf6+ {[%clk 0:00:00]}  Kg8 {[%clk 0:00:00]} 38. Qxg6+ {[%clk 0:00:00]}  Rg7 {[%clk 0:00:00]} 39. Rxg7+ {[%clk 0:00:00]} 1-0


[Site "https://www.chess.com"]